fUSD/lending_fUSD_20240428
["ID","MTS","AMOUNT","RATE_DAILY","PERIOD"]
[324822057,1714345839608,-500.0,0.00011646,2]
[324822058,1714345839617,-206.47,0.00011646,2]
[324822059,1714345839626,-500.0,0.00011646,2]
[324822060,1714345839635,-500.0,0.00011646,2]
[324822061,1714345839644,-500.0,0.00011646,2]
[324822062,1714345839654,-500.0,0.00011646,2]
[324822063,1714345839663,-500.0,0.00011646,2]
[324822064,1714345839672,-500.0,0.00011646,2]
[324822065,1714345839681,-500.0,0.00011646,2]
[324822066,1714345839690,-500.0,0.00011646,2]
[324822067,1714345839699,-500.0,0.00011646,2]
[324822068,1714345839708,-249.09,0.00011646,2]
[324822069,1714345839717,-500.0,0.00011646,2]
[324822070,1714345839726,-613.85,0.00011646,2]
[324822071,1714345839735,-500.0,0.00011646,2]
[324822072,1714345839744,-500.0,0.00011646,2]
[324822073,1714345839753,-500.0,0.00011646,2]
[324822074,1714345839762,-565.83,0.00011646,2]
[324822075,1714345839771,-372.26903956,0.00011646,2]
[324822076,1714345839781,-339.11841441,0.00011646,2]
[324822077,1714345839791,-515.13,0.00011646,2]
[324822078,1714345839800,-500.0,0.00011646,2]
[324822079,1714345839809,-301.1,0.00011646,2]
[324822080,1714345839818,-395.1,0.00011646,2]
[324822081,1714345839827,-500.0,0.00011646,2]
[324822082,1714345839836,-500.0,0.00011646,2]
[324822083,1714345839845,-500.0,0.00011646,2]
[324822084,1714345839854,-500.0,0.00011646,2]
[324822085,1714345839863,-805.28,0.00011646,2]
[324822086,1714345839872,-500.0,0.00011646,2]
[324822087,1714345839881,-500.0,0.00011646,2]
[324822088,1714345839890,-500.0,0.00011646,2]
[324822089,1714345839899,-500.0,0.00011646,2]
[324822090,1714345839908,-500.0,0.00011646,2]
[324822091,1714345839917,-530.24,0.00011646,2]
[324822092,1714345839927,-500.0,0.00011646,2]
[324822093,1714345839936,-500.0,0.00011646,2]
[324822094,1714345839945,-1787.58,0.00011646,2]
[324822095,1714345839955,-500.0,0.00011646,2]
[324822096,1714345839964,-607.62,0.00011646,2]
[324822097,1714345839974,-500.0,0.00011646,2]
[324822098,1714345839983,-500.0,0.00011646,2]
[324822099,1714345839993,-683.72,0.00011646,2]
[324822100,1714345840002,-500.0,0.00011646,2]
[324822101,1714345840011,-572.17,0.00011646,2]
[324822102,1714345840020,-500.0,0.00011646,2]
[324822103,1714345840029,-500.0,0.00011646,2]
[324822104,1714345840038,-500.0,0.00011646,2]
[324822107,1714345840048,-500.0,0.00011646,2]
[324822109,1714345840059,-500.0,0.00011646,2]
[324822112,1714345840068,-500.0,0.00011646,2]
[324822114,1714345840077,-247.94327603,0.00011646,2]
[324822116,1714345840086,-500.0,0.00011646,2]
[324822118,1714345840095,-500.0,0.00011646,2]
[324822120,1714345840104,-3099.94,0.00011646,2]
[324822122,1714345840113,-500.0,0.00011646,2]
[324822124,1714345840123,-500.0,0.00011646,2]
[324822126,1714345840132,-500.0,0.00011646,2]
[324822128,1714345840141,-500.0,0.00011646,2]
[324822130,1714345840150,-500.0,0.00011646,2]
[324822132,1714345840160,-500.0,0.00011646,2]
[324822134,1714345840169,-500.0,0.00011646,2]
[324822136,1714345840178,-500.0,0.00011646,2]
[324822137,1714345840187,-500.0,0.00011646,2]
[324822138,1714345840196,-500.0,0.00011646,2]
[324822139,1714345840205,-178.97,0.00011646,2]
[324822140,1714345840214,-500.0,0.00011646,2]
[324822141,1714345840223,-500.0,0.00011646,2]
[324822142,1714345840232,-347.49,0.00011646,2]
[324822143,1714345840242,-500.0,0.00011646,2]
[324822144,1714345840251,-1180.64,0.00011646,2]
[324822145,1714345840260,-500.0,0.00011646,2]
[324822146,1714345840270,-500.0,0.00011646,2]
[324822147,1714345840279,-500.0,0.00011646,2]
[324822148,1714345840288,-500.0,0.00011646,2]
[324822149,1714345840298,-554.2,0.00011646,2]
[324822150,1714345840307,-500.0,0.00011646,2]
[324822151,1714345840316,-11140.15,0.00011646,2]
[324822152,1714345840326,-500.0,0.00011646,2]
[324822153,1714345840335,-1008.97,0.00011646,2]
[324822154,1714345840344,-500.0,0.00011646,2]
[324822155,1714345840353,-500.0,0.00011646,2]
[324822156,1714345840362,-1251.1,0.00011646,2]
[324822157,1714345840371,-1292.61,0.00011646,2]
[324822158,1714345840380,-500.0,0.00011646,2]
[324822159,1714345840390,-684.78,0.00011646,2]
[324822160,1714345840399,-3507.94,0.00011646,2]
[324822161,1714345840408,-559.97,0.00011646,2]
[324822162,1714345840417,-500.0,0.00011646,2]
[324822163,1714345840426,-500.0,0.00011646,2]
[324822164,1714345840435,-500.0,0.00011646,2]
[324822165,1714345840444,-500.0,0.00011646,2]
[324822166,1714345840454,-500.0,0.00011646,2]
[324822167,1714345840468,-1272.37,0.00011646,2]
[324822168,1714345840477,-567.83,0.00011646,2]
[324822169,1714345840486,-500.0,0.00011646,2]
[324822170,1714345840495,-500.0,0.00011646,2]
[324822171,1714345840506,-1030.92,0.00011646,2]
[324822172,1714345840515,-500.0,0.00011646,2]
[324822173,1714345840524,-500.0,0.00011646,2]
[324822174,1714345840538,-2038.11,0.00011646,2]
[324822175,1714345840551,-647.19,0.00011646,2]
[324822176,1714345840563,-500.0,0.00011646,2]
[324822177,1714345840575,-500.0,0.00011646,2]
[324822178,1714345840588,-500.0,0.00011646,2]
[324822179,1714345840601,-732.36,0.00011646,2]
[324822180,1714345840612,-500.0,0.00011646,2]
[324822181,1714345840623,-500.0,0.00011646,2]
[324822182,1714345840634,-500.0,0.00011646,2]
[324822183,1714345840647,-500.0,0.00011646,2]
[324822184,1714345840658,-500.0,0.00011646,2]
[324822185,1714345840669,-582.73,0.00011646,2]
[324822186,1714345840680,-500.0,0.00011646,2]
[324822187,1714345840691,-500.0,0.00011646,2]
[324822188,1714345840702,-500.0,0.00011646,2]
[324822189,1714345840715,-860.34,0.00011646,2]
[324822190,1714345840726,-500.0,0.00011646,2]
[324822191,1714345840737,-500.0,0.00011646,2]
[324822192,1714345840748,-500.0,0.00011646,2]
[324822193,1714345840762,-926.95,0.00011646,2]
[324822194,1714345840773,-500.0,0.00011646,2]
[324822195,1714345840786,-500.0,0.00011646,2]
[324822196,1714345840799,-1006.66,0.00011646,2]
[324822197,1714345840810,-500.0,0.00011646,2]
[324822198,1714345840820,-500.0,0.00011646,2]
[324822199,1714345840831,-2877.9,0.00011646,2]
[324822200,1714345840842,-500.0,0.00011646,2]
[324822201,1714345840854,-190.14,0.00011646,2]
[324822202,1714345840865,-500.0,0.00011646,2]
[324822203,1714345840877,-500.0,0.00011646,2]
[324822204,1714345840889,-500.0,0.00011646,2]
[324822205,1714345840899,-2903.48,0.00011646,2]
[324822206,1714345840911,-500.0,0.00011646,2]
[324822207,1714345840921,-500.0,0.00011646,2]
[324822208,1714345840931,-500.0,0.00011646,2]
[324822209,1714345840941,-500.0,0.00011646,2]
[324822210,1714345840952,-500.0,0.00011646,2]
[324822211,1714345840964,-500.0,0.00011646,2]
[324822212,1714345840974,-500.0,0.00011646,2]
[324822213,1714345840986,-500.0,0.00011646,2]
[324822214,1714345840997,-500.0,0.00011646,2]
[324822215,1714345841008,-313.84,0.00011646,2]
[324822216,1714345841020,-292.05,0.00011747,2]
[324822217,1714345841031,-500.0,0.00011747,2]
[324822218,1714345841042,-564.85,0.00011747,2]
[324822219,1714345841054,-500.0,0.00011747,2]
[324822220,1714345841066,-464.99,0.00011747,2]
[324822221,1714345841078,-500.0,0.00011747,2]
[324822222,1714345841090,-500.0,0.00011747,2]
[324822223,1714345841101,-500.0,0.00011747,2]
[324822224,1714345841112,-500.0,0.00011747,2]
[324822225,1714345841122,-500.0,0.00011747,2]
[324822226,1714345841133,-500.0,0.00011747,2]
[324822227,1714345841142,-500.0,0.00011747,2]
[324822228,1714345841152,-500.0,0.00011747,2]
[324822229,1714345841163,-406.26,0.00011747,2]
[324822230,1714345841174,-631.85,0.00011747,2]
[324822231,1714345841185,-500.0,0.00011747,2]
[324822232,1714345841197,-174.6,0.00011747,2]
[324822233,1714345841208,-500.0,0.00011747,2]
[324822234,1714345841220,-500.0,0.00011747,2]
[324822235,1714345841230,-500.0,0.00011747,2]
[324822236,1714345841240,-648.44,0.00011747,2]
[324822237,1714345841250,-500.0,0.00011747,2]
[324822238,1714345841261,-500.0,0.00011747,2]
[324822239,1714345841271,-500.0,0.00011747,2]
[324822240,1714345841282,-500.0,0.00011747,2]
[324822241,1714345841295,-500.0,0.00011747,2]
[324822242,1714345841306,-213.12253744,0.00011747,2]
[324822243,1714345841316,-500.0,0.00011747,2]
[324822244,1714345841327,-625.97,0.00011747,2]
[324822245,1714345841337,-500.0,0.00011747,2]
[324822246,1714345841348,-500.0,0.00011919,2]
[324822247,1714345841358,-282.43,0.0001192,2]
[324822248,1714345841368,-340.05,0.0001192,2]
[324822249,1714345841378,-500.0,0.0001192,2]
[324822250,1714345841389,-235.34,0.0001192,2]
[324822251,1714345841399,-500.0,0.0001192,2]
[324822252,1714345841410,-500.0,0.0001192,2]
[324822253,1714345841420,-500.0,0.0001192,2]
[324822254,1714345841430,-500.0,0.0001192,2]
[324822255,1714345841440,-500.0,0.0001192,2]
[324822256,1714345841451,-500.0,0.0001192,2]
[324822257,1714345841465,-500.0,0.0001192,2]
[324822258,1714345841475,-500.0,0.0001192,2]
[324822259,1714345841486,-500.0,0.0001192,2]
[324822260,1714345841496,-805.28,0.0001192,2]
[324822261,1714345841507,-500.0,0.0001192,2]
[324822262,1714345841517,-500.0,0.0001192,2]
[324822263,1714345841529,-500.0,0.0001192,2]
[324822264,1714345841541,-480.94,0.0001192,2]
[324822265,1714345841553,-500.0,0.0001192,2]
[324822266,1714345841563,-1787.58,0.0001192,2]
[324822267,1714345841574,-500.0,0.0001192,2]
[324822268,1714345841584,-607.62,0.0001192,2]
[324822269,1714345841595,-500.0,0.0001192,2]
[324822270,1714345841605,-683.72,0.0001192,2]
[324822271,1714345841615,-638.95,0.0001192,2]
[324822272,1714345841625,-500.0,0.0001192,2]
[324822273,1714345841636,-500.0,0.0001192,2]
[324822274,1714345841646,-500.0,0.0001192,2]
[324822275,1714345841656,-500.0,0.0001192,2]
[324822276,1714345841667,-500.0,0.0001192,2]
[324822277,1714345841677,-500.0,0.0001192,2]
[324822278,1714345841687,-3099.94,0.0001192,2]
[324822279,1714345841698,-500.0,0.0001192,2]
[324822280,1714345841708,-500.0,0.0001192,2]
[324822281,1714345841718,-500.0,0.0001192,2]
[324822282,1714345841728,-500.0,0.0001192,2]
[324822283,1714345841739,-500.0,0.0001192,2]
[324822284,1714345841750,-362.24,0.0001192,2]
[324822285,1714345841760,-500.0,0.0001192,2]
[324822286,1714345841770,-500.0,0.0001192,2]
[324822287,1714345841781,-500.0,0.0001192,2]
[324822288,1714345841791,-500.0,0.0001192,2]
[324822289,1714345841803,-500.0,0.0001192,2]
[324822290,1714345841814,-500.0,0.0001192,2]
[324822291,1714345841824,-1180.64,0.0001192,2]
[324822292,1714345841834,-248.07,0.0001192,2]
[324822293,1714345841844,-500.0,0.0001192,2]
[324822294,1714345841855,-500.0,0.0001192,2]
[324822295,1714345841865,-500.0,0.0001192,2]
[324822296,1714345841875,-500.0,0.0001192,2]
[324822297,1714345841885,-11140.15,0.0001192,2]
[324822298,1714345841897,-500.0,0.0001192,2]
[324822299,1714345841908,-1008.97,0.0001192,2]
[324822300,1714345841918,-500.0,0.0001192,2]
[324822301,1714345841929,-413.32570414,0.0001192,2]
[324822302,1714345841940,-1251.1,0.0001192,2]
[324822303,1714345841950,-1292.61,0.0001192,2]
[324822304,1714345841960,-608.78,0.0001192,2]
[324822305,1714345841971,-684.78,0.0001192,2]
[324822306,1714345841981,-3507.94,0.0001192,2]
[324822307,1714345841991,-559.97,0.0001192,2]
[324822308,1714345842002,-500.0,0.0001192,2]
[324822309,1714345842012,-500.0,0.0001192,2]
[324822310,1714345842023,-476.75006808,0.0001192,2]
[324822311,1714345842033,-500.0,0.0001192,2]
[324822312,1714345842046,-567.83,0.0001192,2]
[324822313,1714345842056,-500.0,0.0001192,2]
[324822314,1714345842066,-500.0,0.0001192,2]
[324822316,1714345842076,-1272.37,0.0001192,2]
[324822318,1714345842086,-1030.92,0.0001192,2]
[324822320,1714345842097,-500.0,0.0001192,2]
[324822322,1714345842108,-500.0,0.0001192,2]
[324822324,1714345842118,-2038.11,0.0001192,2]
[324822326,1714345842129,-647.19,0.0001192,2]
[324822329,1714345842140,-500.0,0.0001192,2]
[324822331,1714345842151,-500.0,0.0001192,2]
[324822333,1714345842161,-732.36,0.0001192,2]
[324822334,1714345842171,-500.0,0.0001192,2]
[324822335,1714345842182,-500.0,0.0001192,2]
[324822336,1714345842192,-582.73,0.0001192,2]
[324822337,1714345842203,-500.0,0.0001192,2]
[324822338,1714345842214,-500.0,0.0001192,2]
[324822339,1714345842224,-304.09,0.0001192,2]
[324822340,1714345842235,-860.34,0.0001192,2]
[324822341,1714345842246,-500.0,0.0001192,2]
[324822342,1714345842256,-500.0,0.0001192,2]
[324822343,1714345842267,-500.0,0.0001192,2]
[324822344,1714345842278,-926.95,0.0001192,2]
[324822345,1714345842288,-500.0,0.0001192,2]
[324822346,1714345842302,-1006.66,0.0001192,2]
[324822347,1714345842313,-500.0,0.0001192,2]
[324822348,1714345842324,-2877.9,0.0001192,2]
[324822349,1714345842335,-500.0,0.0001192,2]
[324822350,1714345842346,-500.0,0.0001192,2]
[324822351,1714345842356,-500.0,0.0001192,2]
[324822352,1714345842366,-2903.48,0.0001192,2]
[324822353,1714345842378,-500.0,0.0001192,2]
[324822354,1714345842389,-500.0,0.0001192,2]
[324822355,1714345842400,-500.0,0.0001192,2]
[324822356,1714345842411,-500.0,0.0001192,2]
[324822357,1714345842421,-500.0,0.0001192,2]
[324822358,1714345842432,-500.0,0.0001192,2]
[324822359,1714345842444,-15005.49836602,0.00012,2]
[324822360,1714345842457,-409.24645721,0.00012,2]
[324822361,1714345842468,-5000.0,0.00012,2]
[324822362,1714345842480,-500.0,0.00012021,2]
[324822363,1714345842491,-500.0,0.00012021,2]
[324822364,1714345842504,-500.0,0.00012021,2]
[324822365,1714345842514,-500.0,0.00012021,2]
[324822366,1714345842526,-500.0,0.00012021,2]
[324822367,1714345842539,-500.0,0.00012021,2]
[324822368,1714345842552,-500.0,0.00012021,2]
[324822369,1714345842562,-500.0,0.00012021,2]
[324822370,1714345842572,-500.0,0.00012021,2]
[324822371,1714345842584,-500.0,0.00012021,2]
[324822372,1714345842595,-500.0,0.00012021,2]
[324822373,1714345842605,-500.0,0.00012021,2]
[324822374,1714345842616,-500.0,0.00012021,2]
[324822375,1714345842628,-500.0,0.00012021,2]
[324822376,1714345842639,-166.88,0.00012033,2]
[324822377,1714345842649,-14930.77,0.00012055,2]
[324822378,1714345842660,-500.0,0.00012194,2]
[324822379,1714345842671,-500.0,0.00012194,2]
[324822380,1714345842681,-500.0,0.00012194,2]
[324822381,1714345842692,-500.0,0.00012194,2]
[324822382,1714345842703,-235.06,0.00012194,2]
[324822383,1714345842714,-565.30436086,0.00012194,2]
[324822384,1714345842724,-225.41,0.00012194,2]
[324822385,1714345842735,-500.0,0.00012194,2]
[324822386,1714345842745,-500.0,0.00012194,2]
[324822387,1714345842756,-805.28,0.00012194,2]
[324822388,1714345842766,-500.0,0.00012194,2]
[324822389,1714345842777,-500.0,0.00012194,2]
[324822391,1714345842787,-500.0,0.00012194,2]
[324822393,1714345842800,-500.0,0.00012194,2]
[324822395,1714345842810,-1787.58,0.00012194,2]
[324822397,1714345842819,-500.0,0.00012194,2]
[324822398,1714345842828,-607.62,0.00012194,2]
[324822435,1714345843072,-500.0,0.00012194,2]
[324822438,1714345843083,-683.72,0.00012194,2]
[324822442,1714345843092,-500.0,0.00012194,2]
[324822446,1714345843102,-500.0,0.00012194,2]
[324822449,1714345843112,-500.0,0.00012194,2]
[324822452,1714345843121,-500.0,0.00012194,2]
[324822455,1714345843130,-500.0,0.00012194,2]
[324822458,1714345843140,-500.0,0.00012194,2]
[324822461,1714345843149,-3099.94,0.00012194,2]
[324822464,1714345843158,-500.0,0.00012194,2]
[324822467,1714345843167,-500.0,0.00012194,2]
[324822470,1714345843176,-500.0,0.00012194,2]
[324822471,1714345843186,-500.0,0.00012194,2]
[324822473,1714345843196,-500.0,0.00012194,2]
[324822475,1714345843205,-500.0,0.00012194,2]
[324822477,1714345843214,-500.0,0.00012194,2]
[324822478,1714345843223,-500.0,0.00012194,2]
[324822480,1714345843233,-500.0,0.00012194,2]
[324822482,1714345843242,-500.0,0.00012194,2]
[324822484,1714345843251,-1180.64,0.00012194,2]
[324822486,1714345843260,-500.0,0.00012194,2]
[324822488,1714345843269,-500.0,0.00012194,2]
[324822490,1714345843279,-500.0,0.00012194,2]
[324822492,1714345843288,-500.0,0.00012194,2]
[324822494,1714345843300,-11140.15,0.00012194,2]
[324822496,1714345843308,-500.0,0.00012194,2]
[324822498,1714345843318,-1008.97,0.00012194,2]
[324822501,1714345843349,-1251.1,0.00012194,2]
[324822502,1714345843358,-1292.61,0.00012194,2]
[324822504,1714345843367,-684.78,0.00012194,2]
[324822506,1714345843377,-3507.94,0.00012194,2]
[324822508,1714345843386,-559.97,0.00012194,2]
[324822510,1714345843395,-500.0,0.00012194,2]
[324822512,1714345843404,-500.0,0.00012194,2]
[324822514,1714345843413,-567.83,0.00012194,2]
[324822516,1714345843423,-500.0,0.00012194,2]
[324822518,1714345843432,-500.0,0.00012194,2]
[324822520,1714345843441,-1272.37,0.00012194,2]
[324822522,1714345843451,-1030.92,0.00012194,2]
[324822524,1714345843462,-500.0,0.00012194,2]
[324822526,1714345843471,-500.0,0.00012194,2]
[324822528,1714345843481,-2038.11,0.00012194,2]
[324822530,1714345843490,-647.19,0.00012194,2]
[324822532,1714345843500,-500.0,0.00012194,2]
[324822534,1714345843509,-500.0,0.00012194,2]
[324822537,1714345843519,-732.36,0.00012194,2]
[324822539,1714345843528,-500.0,0.00012194,2]
[324822541,1714345843539,-500.0,0.00012194,2]
[324822542,1714345843549,-582.73,0.00012194,2]
[324822544,1714345843559,-500.0,0.00012194,2]
[324822546,1714345843568,-860.34,0.00012194,2]
[324822549,1714345843577,-500.0,0.00012194,2]
[324822553,1714345843586,-500.0,0.00012194,2]
[324822557,1714345843595,-500.0,0.00012194,2]
[324822561,1714345843604,-926.95,0.00012194,2]
[324822564,1714345843613,-432.53594504,0.00012194,2]
[324822566,1714345843622,-1006.66,0.00012194,2]
[324822568,1714345843631,-500.0,0.00012194,2]
[324822571,1714345843640,-2877.9,0.00012194,2]
[324822574,1714345843649,-500.0,0.00012194,2]
[324822577,1714345843658,-500.0,0.00012194,2]
[324822580,1714345843667,-500.0,0.00012194,2]
[324822583,1714345843677,-2903.48,0.00012194,2]
[324822586,1714345843686,-500.0,0.00012194,2]
[324822589,1714345843695,-500.0,0.00012194,2]
[324822592,1714345843703,-261.58256148,0.00012194,2]
[324822595,1714345843711,-600.0,0.00012243,2]
[324822597,1714345843720,-500.0,0.00012295,2]
[324822600,1714345843728,-500.0,0.00012295,2]
[324822602,1714345843737,-500.0,0.00012295,2]
[324822605,1714345843746,-500.0,0.00012295,2]
[324822607,1714345843755,-500.0,0.00012295,2]
[324822609,1714345843763,-500.0,0.00012295,2]
[324822611,1714345843773,-500.0,0.00012295,2]
[324822613,1714345843782,-500.0,0.00012295,2]
[324822615,1714345843791,-500.0,0.00012295,2]
[324822617,1714345843801,-559.0,0.00012301,2]
[324822618,1714345843810,-230.4,0.00012431,2]
[324822620,1714345843819,-400.0,0.0001245,2]
[324822622,1714345843828,-500.0,0.00012468,2]
[324822623,1714345843837,-500.0,0.00012468,2]
[324822625,1714345843846,-500.0,0.00012468,2]
[324822626,1714345843854,-500.0,0.00012468,2]
[324822628,1714345843863,-545.83810215,0.00012468,2]
[324822629,1714345843871,-163.94260191,0.00012468,2]
[324822630,1714345843880,-805.28,0.00012468,2]
[324822632,1714345843888,-500.0,0.00012468,2]
[324822633,1714345843897,-500.0,0.00012468,2]
[324822635,1714345843906,-500.0,0.00012468,2]
[324822636,1714345843914,-500.0,0.00012468,2]
[324822638,1714345843923,-1787.58,0.00012468,2]
[324822640,1714345843932,-500.0,0.00012468,2]
[324822641,1714345843941,-607.62,0.00012468,2]
[324822643,1714345843950,-500.0,0.00012468,2]
[324822644,1714345843959,-683.72,0.00012468,2]
[324822646,1714345843968,-500.0,0.00012468,2]
[324822647,1714345843978,-500.0,0.00012468,2]
[324822649,1714345843987,-500.0,0.00012468,2]
[324822650,1714345843996,-500.0,0.00012468,2]
[324822652,1714345844006,-500.0,0.00012468,2]
[324822653,1714345844015,-3099.94,0.00012468,2]
[324822655,1714345844025,-500.0,0.00012468,2]
[324822657,1714345844034,-500.0,0.00012468,2]
[324822658,1714345844045,-500.0,0.00012468,2]
[324822660,1714345844054,-500.0,0.00012468,2]
[324822662,1714345844063,-500.0,0.00012468,2]
[324822664,1714345844073,-500.0,0.00012468,2]
[324822665,1714345844082,-500.0,0.00012468,2]
[324822667,1714345844092,-614.66,0.00012468,2]
[324822668,1714345844101,-500.0,0.00012468,2]
[324822669,1714345844110,-500.0,0.00012468,2]
[324822670,1714345844120,-1180.64,0.00012468,2]
[324822672,1714345844129,-500.0,0.00012468,2]
[324822673,1714345844138,-500.0,0.00012468,2]
[324822675,1714345844148,-500.0,0.00012468,2]
[324822677,1714345844158,-500.0,0.00012468,2]
[324822679,1714345844168,-11140.15,0.00012468,2]
[324822681,1714345844177,-1008.97,0.00012468,2]
[324822683,1714345844186,-1251.1,0.00012468,2]
[324822685,1714345844195,-1292.61,0.00012468,2]
[324822687,1714345844205,-684.78,0.00012468,2]
[324822689,1714345844214,-3507.94,0.00012468,2]
[324822691,1714345844223,-559.97,0.00012468,2]
[324822693,1714345844232,-500.0,0.00012468,2]
[324822695,1714345844241,-500.0,0.00012468,2]
[324822697,1714345844250,-567.83,0.00012468,2]
[324822699,1714345844259,-500.0,0.00012468,2]
[324822701,1714345844268,-1272.37,0.00012468,2]
[324822703,1714345844278,-1030.92,0.00012468,2]
[324822705,1714345844287,-500.0,0.00012468,2]
[324822707,1714345844297,-500.0,0.00012468,2]
[324822708,1714345844307,-2038.11,0.00012468,2]
[324822710,1714345844316,-647.19,0.00012468,2]
[324822712,1714345844325,-500.0,0.00012468,2]
[324822713,1714345844335,-500.0,0.00012468,2]
[324822714,1714345844344,-732.36,0.00012468,2]
[324822715,1714345844353,-500.0,0.00012468,2]
[324822716,1714345844362,-500.0,0.00012468,2]
[324822717,1714345844371,-582.73,0.00012468,2]
[324822718,1714345844381,-500.0,0.00012468,2]
[324822719,1714345844391,-860.34,0.00012468,2]
[324822720,1714345844401,-500.0,0.00012468,2]
[324822721,1714345844411,-500.0,0.00012468,2]
[324822722,1714345844421,-500.0,0.00012468,2]
[324822723,1714345844431,-926.95,0.00012468,2]
[324822724,1714345844441,-1006.66,0.00012468,2]
[324822725,1714345844450,-500.0,0.00012468,2]
[324822726,1714345844465,-2877.9,0.00012468,2]
[324822727,1714345844474,-500.0,0.00012468,2]
[324822728,1714345844483,-500.0,0.00012468,2]
[324822729,1714345844492,-500.0,0.00012468,2]
[324822730,1714345844502,-2903.48,0.00012468,2]
[324822731,1714345844511,-500.0,0.00012468,2]
[324822732,1714345844520,-500.0,0.00012468,2]
[324822733,1714345844529,-251.74141407,0.000125,2]
[324822734,1714345844539,-500.0,0.00012569,2]
[324822735,1714345844550,-203.7552614,0.00012569,2]
[324822736,1714345844560,-500.0,0.00012569,2]
[324822737,1714345844569,-500.0,0.00012569,2]
[324822738,1714345844578,-500.0,0.00012569,2]
[324822739,1714345844587,-500.0,0.00012569,2]
[324822740,1714345844596,-500.0,0.00012569,2]
[324822741,1714345844605,-302.0311818,0.00012569,2]
[324822742,1714345844615,-500.0,0.00012569,2]
[324822743,1714345844624,-392.98,0.00012589,2]
[324822744,1714345844634,-255.32,0.00012708,2]
[324822745,1714345844643,-242.27,0.00012725,2]
[324822746,1714345844652,-500.0,0.00012742,2]
[324822747,1714345844661,-500.0,0.00012742,2]
[324822748,1714345844670,-500.0,0.00012742,2]
[324822749,1714345844679,-500.0,0.00012742,2]
[324822750,1714345844688,-805.28,0.00012742,2]
[324822751,1714345844697,-500.0,0.00012742,2]
[324822752,1714345844706,-500.0,0.00012742,2]
[324822753,1714345844715,-500.0,0.00012742,2]
[324822754,1714345844725,-500.0,0.00012742,2]
[324822755,1714345844734,-1787.58,0.00012742,2]
[324822756,1714345844743,-500.0,0.00012742,2]
[324822757,1714345844752,-607.62,0.00012742,2]
[324822758,1714345844761,-500.0,0.00012742,2]
[324822759,1714345844769,-683.72,0.00012742,2]
[324822760,1714345844779,-500.0,0.00012742,2]
[324822761,1714345844788,-500.0,0.00012742,2]
[324822762,1714345844799,-500.0,0.00012742,2]
[324822763,1714345844808,-500.0,0.00012742,2]
[324822764,1714345844817,-500.0,0.00012742,2]
[324822765,1714345844826,-3099.94,0.00012742,2]
[324822766,1714345844836,-500.0,0.00012742,2]
[324822767,1714345844845,-500.0,0.00012742,2]